[Event "7th Sharjah Challengers 2024"]
[Site "Sharjah"]
[Date "2024.05.15"]
[Round "2.6"]
[White "Heinemann, Josefine"]
[Black "Lashkin, Jegor"]
[Result "0-1"]
[ECO "B52"]
[WhiteElo "2304"]
[BlackElo "2449"]
[Annotator "TA"]
[PlyCount "72"]
[EventDate "2024.05.13"]
[EventType "swiss"]
[EventCountry "UAE"]
[SourceTitle "playchess.com"]
[Source "ChessBase"]
[SourceQuality "1"]
[TimeControl "5400+30"]

{[%evp 11,72,9,20,10,16,15,28,21,24,26,28,22,34,32,35,29,29,23,37,30,34,32,24,6,23,25,28,14,23,20,20,10,20,0,30,35,41,41,64,60,52,45,55,31,44,35,116,0,0,-6,-11,-630,-570,-2212,-2009,-29995,-29996,-29998,-29999,-29999,29999,29995,29999]} 1. e4 {[%emt 0:00:04]} c5 {[%emt 0:00:13]} 2. Nf3 {[%emt 0:00:05]} d6 {[%emt 0:00:10]} 3. Bb5+ {[%emt 0:00:05]} Bd7 {[%emt 0:00:25]} 4. Bxd7+ {[%emt 0:00:05]} Qxd7 {[%emt 0:00:10]} 5. c4 {[%emt 0:00:06]} e5 {[%emt 0:00:26]} 6. Nc3 {[%emt 0:00:17]} Nc6 {[%emt 0:00:16]} 7. O-O {[%emt 0:00:28]} Be7 {[%emt 0:00:16]} 8. a3 {[%emt 0:01:03]} Bd8 {[%emt 0:00:20]} 9. d3 {[%emt 0:04:20] White has an edge.} Nge7 {[%emt 0:00:24]} 10. Rb1 {[%emt 0:07:00]} O-O {[%emt 0:00:49]} 11. b4 {[%emt 0:04:30]} f5 {[%emt 0:01:45]} 12. exf5 {[%emt 0:04:31]} Nxf5 {[%emt 0:00:24]} 13. Qe2 {[%emt 0:02:09]} Bf6 {[%emt 0:02:22]} 14. Qe4 {[%emt 0:03:54]} Kh8 {[%emt 0:17:05]} 15. Be3 {[%emt 0:12:30]} b6 {[%emt 0:01:26]} 16. Rfe1 Rae8 {[%emt 0:02:31]} 17. Nd5 {[%emt 0:09:45]} Bd8 {[%emt 0:02:55]} 18. h3 {[%emt 0:03:12]} h6 {[%emt 0:16:06]} 19. Rbc1 {[%emt 0:11:36]} Nce7 {[%emt 0:10:14]} 20. Nxe7 {[%emt 0:01:52]} Nxe7 {[%emt 0:04:19]} 21. Nh4 {[%emt 0:03:14]} Rf6 {[%emt 0:17:51]} 22. Rb1 {[%emt 0:06:10]} g5 {[%emt 0:05:16]} 23. Nf3 {[%emt 0:00:20]} Ng6 {[%emt 0:00:48]} 24. Bd2 {[%emt 0:03:52]} Qf7 {[%emt 0:06:04]} 25. bxc5 {[%emt 0:01:28]} dxc5 {[%emt 0:00:12]} 26. Bc3 {[%emt 0:00:48][%cal Oa3a4]} Bc7 {[%emt 0:01:37]} 27. Re3 {[%emt 0:02:14]} Kg8 {[%emt 0:01:17]} 28. Rbe1 {[%emt 0:02:38]} Bd6 {[%emt 0:02:09]} ({Black should try} 28... Rf4 $14 29. Qc6 Rf8) 29. g3 {[%emt 0:03:41]} (29. h4 $16) 29... Rf8 $11 {[%emt 0:01:15]} 30. Kg2 {[%emt 0:00:13]} (30. Nxe5 Nxe5 31. Bxe5 Rxf2 $17 (31... Bxe5 32. Qxe5 Rxf2 33. Qd5 $11)) 30... Ne7 {[%emt 0:01:48]} 31. g4 {[%emt 0:04:28][%mdl 8192] [#] Dodges Nf5} (31. Nxe5 Rxf2+ 32. Kg1 Rf1+ 33. Kh2 Qf2+ 34. Qg2 Qxg2+ 35. Kxg2 R8f2#) (31. Bxe5 $2 Bxe5 32. Qb7 (32. Nxe5 Rxf2+ 33. Kh1 Rf1+ 34. Kh2 Qf2+ 35. Qg2 Qxg2+ 36. Kxg2 R8f2#) (32. Qxe5 Rxf3 33. Qe6 Rxf2+ 34. Kg1 Nc6 $19) 32... Kh8 $19 (32... Ng6 33. Qxf7+ R8xf7 34. Nxe5 $15) (32... Rb8 $2 33. Qxa7 Rf8 34. Qb7 $19)) (31. Rf1 $11) 31... Rf4 $19 {[%emt 0:00:46]} 32. Nxe5 {[%emt 0:03:58]} Bxe5 {[%emt 0:00:26]} ({Don't blunder} 32... Rxe4 $2 33. Nxf7 Rxe3 34. Nxh6+ (34. Nxd6 $2 {too greedy.} Rxe1 35. Bxe1 Rd8 $19) 34... Kh7 35. Rxe3 $18) 33. Qxe5 {[%emt 0:01:33]} Rxf2+ {[%emt 0:00:06]} 34. Kg3 {[%emt 0:00:05] [#]} Qf3+ $3 {[%emt 0:00:04][%mdl 512]} 35. Rxf3 {[%emt 0:00:03]} Rf5 $4 {[%emt 0:05:45][%mdl 8192]} 36. Rxf2 Rxf2 {[%emt 0:00:00][%mdl 32768] Quite a comeback for White.   Weighted Error Value: White=0.64/Black=0.24 (precise) .  Loses game:     	White=1     	---        Mistake:       	White=1     	Black=1      Inaccurate:     	White=2     	Black=1      OK:         	White=10    	Black=7      Best:        	---       	Black=2     . Loss on time!?} 0-1

[Event "7th Sharjah Challengers 2024"]
[Site "Sharjah"]
[Date "2024.05.15"]
[Round "2.7"]
[White "Divya Deshmukh"]
[Black "Nagarkatte Vedant"]
[Result "1-0"]
[ECO "E11"]
[WhiteElo "2443"]
[BlackElo "2299"]
[Annotator "TA"]
[PlyCount "53"]
[EventDate "2024.05.13"]
[EventType "swiss"]
[EventCountry "UAE"]
[SourceTitle "playchess.com"]
[Source "ChessBase"]
[SourceQuality "1"]
[TimeControl "5400+30"]

{[%evp 19,53,0,10,0,43,34,65,58,60,61,65,43,57,47,68,62,77,75,79,89,88,92,100,105,102,114,105,89,91,75,69,62,143,145,507,522]} 1. Nf3 {[%emt 0:00:09]} d5 {[%emt 0:00:48]} 2. d4 {[%emt 0:00:20]} Nf6 {[%emt 0:00:13]} 3. c4 {[%emt 0:00:19]} e6 {[%emt 0:00:18]} 4. g3 {[%emt 0:00:18]} Bb4+ {[%emt 0:08:10]} 5. Bd2 {[%emt 0:00:59]} Be7 {[%emt 0:00:06]} 6. Bg2 {[%emt 0:00:41]} c6 {[%emt 0:00:53]} 7. Qc2 {[%emt 0:03:30]} O-O {[%emt 0:00:13]} 8. O-O {[%emt 0:00:26]} b6 {[%emt 0:01:14]} 9. Bf4 {[%emt 0:07:28]} Ba6 {[%emt 0:01:26]} 10. Nbd2 {[%emt 0:02:40]} Nbd7 {[%emt 0:04:15]} 11. Rfd1 {[%emt 0:20:29]} Bb7 {[%emt 0:05:31]} 12. e4 {[%emt 0:05:11]} dxe4 {[%emt 0:00:07]} 13. Nxe4 {[%emt 0:01:37] White is slightly better.} Nxe4 {[%emt 0:00:09]} 14. Qxe4 {[%emt 0:00:02]} Nf6 {[%emt 0:00:05]} 15. Qc2 {[%emt 0:00:50]} Qc8 {[%emt 0:00:23]} 16. Ne5 {[%emt 0:07:59][%cal Bf3e5,Be5c4,Bc4a5,Ba5b7][%mdl 32]} Rd8 {[%emt 0:00:32]} 17. Qa4 {[%emt 0:01:56]} Rd6 {[%emt 0:53:06]} 18. b4 {[%emt 0:02:16]} b5 {[%emt 0:03:16]} 19. Qb3 {[%emt 0:02:37] Threatens to win with cxb5. White is much more active.} ({Don't play} 19. cxb5 $6 cxb5 20. Qxb5 Rb6 $11) 19... bxc4 {[%emt 0:00:15]} 20. Nxc4 {[%emt 0:40:43]} Rd8 {[%emt 0:00:55]} 21. Rac1 {[%emt 0:00:00][%cal Ba1c1,Bc1c4,Bc4c2,Bc2e2][%mdl 32] Black must now prevent b5.} Nd5 {[%emt 0:06:02]} 22. Na5 $36 {[%emt 0:00:00][%mdl 2048] Black is under strong pressure.} a6 {[%emt 0:12:14]} 23. Rc4 {[%emt 0:00:00]} Qd7 {[%emt 0:01:02]} ({Don't go for} 23... Nxf4 $2 24. gxf4 Rd5 25. Rdc1 $18 (25. Bxd5 exd5 26. Rcc1 Rb8 $18)) 24. Bxd5 {[%emt 0:00:00]} exd5 {[%emt 0:00:03]} 25. Rc2 {[%emt 0:00:00]} Rdc8 {[%emt 0:01:02]} ({Better is} 25... Bf8 $14) 26. Re2 {[%emt 0:00:00]} Bd8 $2 {[%emt 0:00:26][%mdl 8192] [#]} (26... Bf8 $16 {is more resistant.} 27. Rde1 h6) 27. Nxb7 {[%emt 0:03:30] Black got outplayed after the opening.   Weighted Error Value: White=0.07 (flawless) /Black=0.50.  Loses game:     	---       	Black=1      Mistake:       	---       	Black=1      Inaccurate:     	---       	Black=2      OK:         	White=3     	Black=5      Best:        	White=1     	Black=1} 1-0

[Event "7th Sharjah Challengers 2024"]
[Site "Sharjah"]
[Date "2024.05.15"]
[Round "2.8"]
[White "Lopez Rayo, Santiago"]
[Black "Mohammad Fahad, Rahman"]
[Result "1/2-1/2"]
[ECO "B45"]
[WhiteElo "2301"]
[BlackElo "2435"]
[Annotator "TA"]
[PlyCount "75"]
[EventDate "2024.05.13"]
[EventType "swiss"]
[EventCountry "UAE"]
[SourceTitle "playchess.com"]
[Source "ChessBase"]
[SourceQuality "1"]
[TimeControl "5400+30"]

{[%evp 15,75,20,41,30,33,36,33,29,32,25,31,36,36,29,29,27,107,101,107,108,110,121,101,101,114,46,53,45,45,46,91,83,83,79,68,-8,-5,-5,-5,-8,-8,-52,-57,-133,-170,-105,-41,-37,0,0,0,0,0,-12,0,0,0,0,0,0,16,43]} 1. e4 {[%emt 0:00:05]} c5 {[%emt 0:00:20]} 2. Nf3 {[%emt 0:00:20]} e6 {[%emt 0:00:32]} 3. d4 {[%emt 0:00:17]} cxd4 {[%emt 0:00:12]} 4. Nxd4 {[%emt 0:00:12]} Nf6 {[%emt 0:00:14]} 5. Nc3 {[%emt 0:00:21]} Nc6 {[%emt 0:00:14]} 6. Nxc6 {[%emt 0:00:19]} bxc6 {[%emt 0:00:06]} 7. e5 {[%emt 0:00:13]} Nd5 {[%emt 0:00:13]} 8. Ne4 {[%emt 0:00:24]} Bb7 {[%emt 0:03:08]} 9. Be2 {[%emt 0:01:06]} c5 {[%emt 0:00:25]} 10. O-O {[%emt 0:00:54]} Qc7 {[%emt 0:00:08] [#]} 11. Nd6+ $1 {[%emt 0:01:25] White is slightly better.} Bxd6 {[%emt 0:00:10]} 12. exd6 {[%emt 0:00:09]} Qc6 {[%emt 0:00:13][%cal Oc5c4]} (12... Qxd6 $2 {is the wrong capture.} 13. c4 $18) 13. f3 {[%emt 0:01:11]} Qb6 {[%emt 0:02:19]} (13... Qxd6 $2 {perishes.} 14. c4 $18) 14. c4 {[%emt 0:10:16]} Nb4 {[%emt 0:00:02]} 15. Be3 {[%emt 0:03:47] And now a3 would win.} Nc6 {[%emt 0:03:22] [#]} (15... a5 $1 $11 {remains equal.}) 16. b4 $1 $16 {[%emt 0:05:38][%mdl 512]} Nxb4 {[%emt 0:19:22]} 17. Rb1 {[%emt 0:06:38]} Qc6 {[%emt 0:06:45]} 18. a3 {[%emt 0:02:58][%mdl 1024] White has strong compensation.} Na6 {[%emt 0:00:07] [#] Black is weak on the dark squares} 19. Rb5 $1 {[%emt 0:12:45] Qb3 is the strong threat.} Qc8 {[%emt 0:01:38]} 20. Qe1 {[%emt 0:07:38]} (20. Bd3 $16) 20... O-O $1 $14 {[%emt 0:01:44]} 21. Bd3 {[%emt 0:02:36]} Bc6 {[%emt 0:03:08] [#]} 22. Qa5 $1 {[%emt 0:07:42][%cal Oe3f2]} e5 {[%emt 0:07:55] [#]} ({Don't go for} 22... Bxb5 $2 23. cxb5 c4 24. Be4 $18) (22... f5 23. Rbb1) 23. Qc3 $1 {[%emt 0:06:10] White has more active pieces.} Re8 {[%emt 0:02:14] [#]} 24. Qc2 $1 {[%emt 0:00:58]} g6 {[%emt 0:15:07] [#]} 25. Bg5 {[%emt 0:07:29]} Bxb5 $11 {[%emt 0:08:21]} 26. cxb5 {[%emt 0:00:15] [#]} c4 $1 {[%emt 0:00:01]} 27. Bxc4 {[%emt 0:05:56][%cal Of1c1] Rc1! would now be deadly.} Nc5 {[%emt 0:01:22]} 28. Be3 {[%emt 0:07:43]} Nb7 $1 {[%emt 0:01:08]} 29. Qd3 {[%emt 0:02:14] [#]} (29. Qb3 $1 $15 Nxd6 30. Bd5) 29... Nxd6 $1 $17 {[%emt 0:01:43][%mdl 512]} 30. Bd5 {[%emt 0:00:06]} Nf5 {[%emt 0:01:45]} 31. Bf2 {[%emt 0:02:32] This pair of bishops is nice.} Qc7 {[%emt 0:01:12]} 32. Bxa8 {[%emt 0:00:07] The position is equal.} Rxa8 {[%emt 0:00:00]} 33. Rd1 $36 {[%emt 0:00:10][%mdl 2048] White is more active.} Rd8 {[%emt 0:05:28]} 34. g4 {[%emt 0:00:10] [#]} Nd4 {[%emt 0:01:14]} 35. Bxd4 {[%emt 0:00:16]} exd4 {[%emt 0:00:01]} 36. Qxd4 {[%emt 0:00:12]} d5 {[%emt 0:00:06]} 37. a4 {[%emt 0:00:40]} h6 {[%emt 0:07:18]} 38. Rd2 {[%emt 0:00:37] Weighted Error Value: White=0.13 (very precise) /Black=0.12 (very precise) .  Mistake:       	White=3     	Black=2      Inaccurate:     	White=1     	Black=2      OK:         	White=11    	Black=13     Best:        	White=2     	Black=1      Strong:       	White=1     	Black=2      Brilliant:      	White=1     	Black=2} 1/2-1/2

[Event "7th Sharjah Challengers 2024"]
[Site "Sharjah"]
[Date "2024.05.15"]
[Round "2.9"]
[White "Garifullina, Leya"]
[Black "George Micheal, Kevin"]
[Result "1-0"]
[ECO "B90"]
[WhiteElo "2431"]
[BlackElo "2263"]
[Annotator "TA"]
[PlyCount "89"]
[EventDate "2024.05.13"]
[EventType "swiss"]
[EventCountry "UAE"]
[SourceTitle "playchess.com"]
[Source "ChessBase"]
[SourceQuality "1"]
[TimeControl "5400+30"]

{[%evp 21,89,16,18,14,1,13,0,17,33,-17,28,0,0,-38,-32,-37,114,127,115,95,110,117,400,365,402,397,403,416,539,510,515,243,249,255,243,256,289,275,274,267,327,198,290,107,288,320,313,327,300,293,29974,29967,29974,29974,29972,29968,29962,29975,29977,29978,29978,1108,29983,29980,29980,29981,29981,29982,29981,29982]} 1. e4 {[%emt 0:00:22]} c5 {[%emt 0:01:20]} 2. Nf3 {[%emt 0:00:34]} d6 {[%emt 0:00:06]} 3. d4 {[%emt 0:00:05]} cxd4 {[%emt 0:00:07]} 4. Nxd4 {[%emt 0:00:08]} Nf6 {[%emt 0:00:05]} 5. Nc3 {[%emt 0:00:10]} a6 {[%emt 0:00:04]} 6. Be3 {[%emt 0:00:07]} e5 {[%emt 0:00:13]} 7. Nb3 {[%emt 0:00:07]} Be7 {[%emt 0:00:07]} 8. f3 {[%emt 0:00:09]} Be6 {[%emt 0:00:22]} 9. Qd2 {[%emt 0:00:17]} h5 {[%emt 0:00:20]} 10. O-O-O {[%emt 0:00:08]} Nbd7 {[%emt 0:00:35]} 11. Kb1 {[%emt 0:00:20]} Rc8 {[%emt 0:01:30]} 12. Bd3 {[%emt 0:00:08]} b5 {[%emt 0:03:59]} 13. h3 {[%emt 0:00:53]} h4 {[%emt 0:00:19]} 14. f4 {[%emt 0:00:05] The position is equal.} O-O {[%emt 0:00:16]} 15. f5 {[%emt 0:04:57]} ({Better is} 15. Bf2 $14) 15... Bc4 {[%emt 0:01:02]} (15... b4 $5 16. fxe6 bxc3 $16) 16. g3 {[%emt 0:06:33]} hxg3 {[%emt 0:06:54]} 17. Rdg1 {[%emt 0:13:08]} d5 {[%emt 0:27:05] And now ...d4 would win.} 18. exd5 {[%emt 0:07:43]} e4 $2 {[%emt 0:10:00]} (18... b4 $15 {stays ahead.} 19. Ne2 g2 (19... Bxd5 20. Nxg3 Bxh1 21. Nxh1 $17) 20. Rxg2 Bxd5) 19. Bxc4 $16 {[%emt 0:05:15]} (19. Bxe4 $2 b4 20. Bd4 (20. d6 $2 bxc3 21. dxe7 Qxe7 $19) 20... bxc3 $19) (19. Nxe4 Bxd5 20. Nxg3 (20. Qg2 Bd6 $17) 20... Bxh1 21. Nxh1 Re8 $15) 19... bxc4 {[%emt 0:04:12]} 20. d6 {[%emt 0:03:22]} cxb3 {[%emt 0:02:00]} 21. axb3 {[%emt 0:09:25]} (21. dxe7 bxc2+ 22. Qxc2 Qxe7 $14) 21... Ne5 $2 {[%emt 0:07:34][%mdl 8192]} 22. dxe7 $18 {[%emt 0:00:10]} Qxe7 {[%emt 0:00:08]} 23. Rxg3 {[%emt 0:00:55]} Nh5 {[%emt 0:01:01] [#]} 24. Rg4 {[%emt 0:02:25][%mdl 512]} Qf6 {[%emt 0:14:25] [#]} (24... Nf3 25. Qg2) 25. Qg2 $1 {[%emt 0:05:02]} Qxf5 {[%emt 0:11:06]} 26. Rf1 {[%emt 0:08:36] Against Qf3} (26. Rxe4 Rfe8 27. Rg1 (27. Rf1 Qg6 $18) 27... Rcd8 $18) (26. Qxe4 Qxe4 27. Rxe4 Ng3 28. Rxe5 Nxh1 $11) (26. Rg5 $142 Qf3 27. Rg1 (27. Nxe4 Qxg2 28. Rxg2 f5 $16) (27. Qxf3 Nxf3 28. Rxh5 f5 $18)) 26... Nxg4 {[%emt 0:02:06]} 27. hxg4 {[%emt 0:01:57]} (27. Rxf5 $6 Nxe3 28. Qxe4 Nxf5 29. Qxf5 g6 $16) 27... Qg6 {[%emt 0:00:08] aiming for ...f5.} 28. Nd5 {[%emt 0:01:04][%mdl 1024] White has strong compensation.} Rfe8 {[%emt 0:03:34][%cal Bf8e8,Be8e5,Be5a5][%mdl 32] Against Ne7+} 29. Qh3 {[%emt 0:01:07]} Nf6 {[%emt 0:00:07] [#]} 30. Rh1 $1 {[%emt 0:01:21][%csl Gh1][%cal Rh3h8]} Kf8 {[%emt 0:00:27]} (30... Nh7 31. g5) 31. Qh8+ {[%emt 0:05:00]} Ng8 {[%emt 0:00:03][%cal Oe8d8]} 32. g5 $2 {[%emt 0:02:47]} (32. Nf4 $18 Qd6 (32... Qxg4 $2 {is the wrong capture.} 33. Rg1 $18) 33. Nh5) 32... Qc6 {[%emt 0:02:09]} (32... Qf5 $16 {keeps fighting.} 33. c4 Re6) 33. c4 {[%emt 0:00:07]} Re5 {[%emt 0:01:28]} 34. Rh7 {[%emt 0:02:09]} Qg6 {[%emt 0:01:45]} 35. Nf4 {[%emt 0:00:43]} Qf5 {[%emt 0:00:45]} (35... Qxg5 $18 36. Ne6+ fxe6 37. Bxg5 Rxg5) 36. Qxg7+ {[%emt 0:00:46] Black is weak on the dark squares} Ke8 {[%emt 0:00:07][%cal Bf8e8,Be8e7,Be7e6,Be6f7][%mdl 32]} 37. Qxg8+ {[%emt 0:00:23]} Ke7 {[%emt 0:00:05]} 38. Qg7 {[%emt 0:00:26]} Ra5 {[%emt 0:00:49]} 39. g6 {[%emt 0:01:23]} Rf8 {[%emt 0:00:24]} 40. gxf7 {[%emt 0:00:09]} Rxf7 {[%emt 0:00:20]} 41. Nd5+ {[%emt 0:00:25]} (41. Qxf7+ $142 Qxf7 42. Nd5+ (42. Rxf7+ Kxf7 43. Nd5 Ke6 $18) 42... Ke6 43. Rxf7 Kxf7 44. Bb6 Ra1+ 45. Kxa1 Ke6 46. Nc3) 41... Ke6 {[%emt 0:00:48]} 42. Qxf7+ {[%emt 0:00:10] White mates.} Qxf7 {[%emt 0:00:17]} 43. Rxf7 {[%emt 0:00:04]} Kxf7 {[%emt 0:00:27]} 44. b4 {[%emt 0:00:38]} Rxd5 {[%emt 0:00:22]} 45. cxd5 {[%emt 0:00:04] Weighted Error Value: White=0.21 (precise) /Black=0.72.  Loses game:     	---       	Black=2      Missed win:     	White=1     	---        Mistake:       	White=2     	Black=2      Inaccurate:     	White=2     	Black=2      OK:         	White=7     	Black=7      Best:        	White=4     	Black=2      Strong:       	White=1     	---        Brilliant:      	White=1     	---} 1-0

[Event "7th Sharjah Challengers 2024"]
[Site "Sharjah"]
[Date "2024.05.15"]
[Round "2.11"]
[White "Devnani Kush"]
[Black "Hesham, Abdelrahman"]
[Result "1-0"]
[ECO "E92"]
[WhiteElo "2250"]
[BlackElo "2394"]
[Annotator "TA"]
[PlyCount "101"]
[EventDate "2024.05.13"]
[EventType "swiss"]
[EventCountry "UAE"]
[SourceTitle "playchess.com"]
[Source "ChessBase"]
[SourceQuality "1"]
[TimeControl "5400+30"]

{[%evp 24,101,5,13,40,14,25,15,16,15,7,0,0,0,0,0,0,0,0,0,0,0,0,0,0,0,-18,0,0,0,0,0,0,0,0,0,0,0,0,0,47,43,40,42,43,44,61,50,74,61,56,64,70,0,0,-71,106,76,76,80,81,83,72,68,230,254,212,75,87,0,0,-8,-8,-8,55,55,55,0,29998,29999]} 1. d4 {[%emt 0:10:40]} Nf6 {[%emt 0:00:11]} 2. c4 {[%emt 0:00:30]} g6 {[%emt 0:00:07]} 3. Nc3 {[%emt 0:00:08]} Bg7 {[%emt 0:00:07]} 4. e4 {[%emt 0:00:10]} d6 {[%emt 0:00:05]} 5. Nf3 {[%emt 0:00:10]} O-O {[%emt 0:00:07]} 6. Be2 {[%emt 0:00:10]} e5 {[%emt 0:00:06]} 7. Be3 {[%emt 0:00:05]} exd4 {[%emt 0:00:06]} 8. Nxd4 {[%emt 0:00:07]} Re8 {[%emt 0:00:04]} 9. f3 {[%emt 0:00:06]} c6 {[%emt 0:00:04]} 10. Bf2 {[%emt 0:00:05]} d5 {[%emt 0:00:04]} 11. exd5 {[%emt 0:00:11]} cxd5 {[%emt 0:00:06]} 12. O-O {[%emt 0:00:06]} Nc6 {[%emt 0:00:04]} 13. c5 {[%emt 0:00:05]} Bd7 {[%emt 0:00:04]} 14. Ndb5 {[%emt 0:03:13][%cal Od1d2]} Re7 {[%emt 0:00:05]} 15. Re1 {[%emt 0:05:29]} a6 {[%emt 0:00:05] The position is equal.} 16. Nd6 {[%emt 0:00:41]} Be6 {[%emt 0:00:04][%cal Od5d4]} 17. Na4 {[%emt 0:12:27]} Qf8 {[%emt 0:00:05]} 18. Nb6 {[%emt 0:02:38]} Rd8 {[%emt 0:00:01]} 19. Qa4 {[%emt 0:01:29][%cal Od6b7]} Ne8 {[%emt 0:05:17]} 20. Nxb7 $1 {[%emt 0:10:25]} Rxb7 {[%emt 0:00:05]} 21. Qxc6 {[%emt 0:00:09]} Rc7 {[%emt 0:00:03]} 22. Qa4 {[%emt 0:01:14]} Rxc5 {[%emt 0:00:06][%cal Og7b2]} 23. Rad1 {[%emt 0:18:40]} Qd6 {[%emt 0:27:25]} 24. Qb4 {[%emt 0:20:38]} d4 {[%emt 0:16:58]} 25. Na4 {[%emt 0:05:08]} Rc6 {[%emt 0:00:34]} 26. Qxd6 {[%emt 0:00:13]} Rdxd6 {[%emt 0:00:17]} 27. Bd3 {[%emt 0:02:02]} Nc7 {[%emt 0:04:11]} 28. Bg3 {[%emt 0:02:16]} Rd8 {[%emt 0:00:48]} 29. Rc1 $36 {[%emt 0:00:15][%mdl 2048] White has some pressure.} Rxc1 {[%emt 0:00:08]} 30. Rxc1 {[%emt 0:00:01]} Nd5 {[%emt 0:00:13]} 31. a3 {[%emt 0:02:52][%cal Oc1c6] Wards off Nb4} (31. Bxa6 Nb4 32. Nc5 Nxa6 (32... Nxa2 33. Nxe6 fxe6 34. Re1 $16) (32... Bxa2 33. Bc7 $11) 33. Nxa6 d3 $19 (33... Bxa2 34. Nb4 $15)) 31... Bh6 {[%emt 0:02:05]} (31... Bd7 $11 {feels stronger.} 32. Nc5 Bh6) 32. Rc6 $14 {[%emt 0:01:23][%cal Oa4c5]} Nf4 {[%emt 0:00:35]} 33. Bxf4 {[%emt 0:00:33]} Bxf4 {[%emt 0:00:04]} 34. Nc5 {[%emt 0:00:37]} Bd5 {[%emt 0:02:19]} 35. Rxa6 {[%emt 0:00:13]} Kg7 {[%emt 0:01:36]} 36. b4 {[%emt 0:01:00]} h5 {[%emt 0:02:20]} 37. Ra7 {[%emt 0:00:37]} Re8 {[%emt 0:04:52]} 38. Be4 {[%emt 0:00:12]} (38. Kf2 $14) 38... Bc4 $11 {[%emt 0:01:00] A strong pair of Bishops.} 39. Rd7 {[%emt 0:00:32] [#]} (39. Kf2 $11) 39... Kh6 $2 {[%emt 0:00:39]} (39... Bb5 $1 $17 {keeps the pressure on.} 40. Rb7 (40. Rxd4 $2 Be3+ 41. Kh1 Bxd4 $19) 40... Be3+ 41. Kh1 d3 42. Nxd3 (42. Rxb5 d2 $17) 42... Bxd3 43. Bxd3 h4) 40. g3 {[%emt 0:01:33]} (40. Rxd4 $2 {too greedy.} Be3+ 41. Kh1 Bxd4 $19) 40... Be3+ {[%emt 0:00:13]} 41. Kg2 {[%emt 0:00:01] Threatens to win with a4. White is more active.} f5 {[%emt 0:00:56] [#]} 42. Bd5 {[%emt 0:00:54]} Bb5 {[%emt 0:00:20]} 43. Rd6 {[%emt 0:00:23] Hoping for a4.} Re7 $2 {[%emt 0:00:29]} (43... d3 $14) 44. a4 $18 {[%emt 0:00:28]} Be2 {[%emt 0:00:31]} 45. f4 {[%emt 0:01:28]} (45. Be6 $18 {has better winning chances.} Kg7 46. Bb3) 45... h4 $16 {[%emt 0:00:28]} 46. Ne6 {[%emt 0:00:32]} (46. gxh4 $16 {Bf3 is the strong threat.} Bd2 47. Re6 Rxe6 48. Nxe6 Bxb4 49. Nxd4) 46... d3 $11 {[%emt 0:00:31][%cal Bd4d3,Bd3d2][%mdl 32]} 47. Bc4 {[%emt 0:00:16] [#]} h3+ $1 {[%emt 0:00:12]} 48. Kxh3 {[%emt 0:00:13][%cal Oh3g2] Strongly threatening Kg2!} Bg4+ {[%emt 0:05:41]} (48... Bf1+ $11 49. Kh4 Rxe6 50. Rxe6 d2) 49. Kg2 $14 {[%emt 0:00:13]} d2 {[%emt 0:00:04]} 50. Nf8 {[%emt 0:00:56]} (50. Bb3 $14) 50... Kg7 $2 {[%emt 0:02:27][%mdl 8192]} (50... d1=Q $11 51. Rxg6+ Kh5 52. Rg5+ Kh6 53. Rg6+ Kh5 54. Rg5+ Kh6 55. Rg6+) 51. Rxg6+ {[%emt 0:00:11] Weighted Error Value: White=0.17 (very precise) /Black=0.34.  Loses game:     	---       	Black=2      Mistake:       	White=5     	Black=3      Inaccurate:     	White=1     	---        OK:         	White=18    	Black=19     Best:        	White=6     	Black=5      Strong:       	White=1     	---} 1-0